bitfinex/quotes_SOLUSD_20251125
["timestamp","ask_amount","ask_price","bid_price","bid_amount"]
[1764110086079,1.99999999,137.78,137.77,18.14618567]
[1764110086080,2.69999999,137.78,137.77,18.14618567]
[1764110087566,0.7,137.78,137.77,18.14618567]
[1764110087768,2.69999999,137.78,137.77,25.40465993]
[1764110088167,0.7,137.84,137.77,29.7239903]
[1764110088365,0.7,137.84,137.78,3.22]
[1764110088672,0.7,137.84,137.82,4.31933037]
[1764110088871,0.7,137.84,137.78,3.22]
[1764110088872,0.7,137.84,137.8,3.22]
[1764110089075,0.7,137.84,137.83,4.31933037]
[1764110089662,0.7,137.86,137.84,7.25478816]
[1764110089963,0.7,137.86,137.84,11.57411853]
[1764110090168,0.7,137.86,137.84,7.25478816]
[1764110090867,0.7,137.86,137.84,11.57411853]
[1764110092082,0.7,137.86,137.84,7.25478816]
[1764110092290,4.31933037,137.85,137.77,4.31933037]
[1764110092463,4.31933037,137.84,137.78,4.31933037]
[1764110092660,2.76409283,137.84,137.78,19.07295683]
[1764110092861,3.46409283,137.83,137.78,16.308864]
[1764110093382,3.45409283,137.82,137.77,2.76409283]
[1764110093761,3.45409283,137.82,137.76,16.308864]
[1764110093762,3.45409283,137.81,137.76,2.76409283]
[1764110094184,0.69,137.8,137.77,7.25847426]
[1764110095267,0.69,137.85,137.8,8.80994492]
[1764110095473,0.69,137.85,137.83,2.76409283]
[1764110095880,0.69,137.88,137.84,2.76409283]
[1764110096093,0.69,137.88,137.87,7.25320954]
[1764110098262,0.69,137.88,137.87,10.01730237]
[1764110098664,0.69,137.88,137.87,13.8277573]
[1764110102070,0.72,137.88,137.87,13.8277573]
[1764110102382,6.57454776,137.95,137.87,17.0677573]
[1764110102685,7.24690194,137.99,137.92,6.57454776]
[1764110102686,0.72,137.94,137.92,6.57454776]
[1764110102891,0.72,137.94,137.91,6.57454776]
[1764110103083,0.72,137.94,137.93,6.57454776]
[1764110103587,0.72,137.94,137.92,6.57454776]
[1764110103793,3.24,137.98,137.93,6.57454776]
[1764110103990,0.72,137.98,137.97,6.57454776]
[1764110104373,21.35020171,138.05,137.97,6.57454776]
[1764110104374,0.82,138.02,137.98,25.36599506]
[1764110104691,0.82,138.02,138.01,6.57454776]
[1764110104889,0.82,138.02,138.0,6.57454776]
[1764110105365,0.1,138.02,138.01,6.57454776]
[1764110106287,0.72,138.09,138.05,7.24375226]
[1764110106478,0.72,138.08,138.07,6.57454776]
[1764110106679,2.94569289,138.1,138.07,6.57454776]
[1764110106877,3.66569289,138.1,138.05,28.59313291]
[1764110107063,3.66569289,138.1,138.09,6.57454776]
[1764110107266,2.94569289,138.1,138.09,6.57454776]
[1764110107670,2.94569289,138.1,138.08,9.81454776]
[1764110107871,2.94569289,138.1,138.09,6.57454776]
[1764110108092,3.66569289,138.1,138.09,6.57454776]
[1764110108473,3.66569289,138.1,138.09,13.81620175]
[1764110109280,3.66569289,138.1,138.08,6.57454776]
[1764110109693,0.72,138.09,138.08,6.57454776]
[1764110110785,0.72,138.09,138.06,7.24276812]
[1764110110786,0.72,138.09,138.07,6.57454776]
[1764110111298,0.72,138.09,138.08,6.57454776]
[1764110111510,0.72,138.09,138.06,7.24276812]
[1764110111685,0.72,138.09,138.04,21.34962023]
[1764110111686,0.72,138.09,138.07,6.57454776]
[1764110111883,0.72,138.09,138.05,6.57454776]
[1764110112077,0.72,138.09,138.06,6.57454776]
[1764110112890,7.96167187,138.09,138.06,6.57454776]
[1764110113089,0.72,138.09,138.06,6.57454776]
[1764110113290,0.72,138.09,138.04,7.24390609]
[1764110113596,0.72,138.09,138.05,6.57454776]
[1764110114292,7.96166622,138.09,138.04,7.24390609]
[1764110114499,7.96166622,138.09,138.05,6.57454776]
[1764110114676,0.72,138.08,138.01,8.80994492]
[1764110114882,7.96239036,138.08,138.04,6.57454776]
[1764110115297,0.72,138.07,138.04,6.57454776]
[1764110115504,0.72,138.07,138.03,6.57454776]
[1764110116800,7.29454776,138.07,138.02,6.57454776]
[1764110117004,7.96322758,138.06,138.01,6.57454776]
[1764110117512,0.72,138.05,138.01,6.57454776]
[1764110117691,0.72,138.05,138.0,6.57454776]
[1764110117889,0.72,138.05,138.01,6.57454776]
[1764110118106,0.72,138.05,138.02,6.57454776]
[1764110118304,0.72,138.05,138.01,6.57454776]
[1764110119112,0.72,138.05,138.03,6.57454776]
[1764110119286,0.72,138.05,138.0,7.24637304]
[1764110119488,0.72,138.05,138.03,6.57454776]
[1764110119804,0.72,138.05,138.02,6.57454776]
[1764110120109,0.72,138.05,138.02,13.81974122]
[1764110120411,0.72,138.05,138.03,6.57454776]
[1764110121214,0.72,138.05,138.0,16.308864]
[1764110121424,0.72,138.05,138.02,6.57454776]
[1764110122102,0.72,138.05,138.01,7.24585174]
[1764110122289,0.72,138.05,138.02,6.57454776]
[1764110124030,18.10626364,138.08,138.02,6.57454776]
[1764110124031,0.67,138.08,138.02,8.80994492]
[1764110124309,0.67,138.08,138.06,6.57454776]
[1764110124708,0.67,138.08,138.03,25.35561436]
[1764110124709,3.61569289,138.1,138.03,25.35561436]
[1764110125011,3.61569289,138.1,138.07,6.57454776]
[1764110125315,0.67,138.09,138.07,6.57454776]
[1764110126319,0.67,138.09,138.07,13.81721328]
[1764110126492,2.94569289,138.1,138.08,6.57454776]
[1764110126693,2.94569289,138.1,138.09,6.57454776]
[1764110127416,2.94569289,138.1,138.07,37.39936788]
[1764110127594,2.94569289,138.1,138.09,6.57454776]
[1764110128326,2.94569289,138.1,138.09,13.81620175]
[1764110130917,2.94569289,138.1,138.09,7.24165399]
[1764110131116,2.94569289,138.1,138.09,13.81620175]
[1764110131438,3.61569289,138.1,138.05,18.10916398]
[1764110131610,0.67,138.09,138.06,6.57454776]
[1764110131927,0.67,138.09,138.07,6.57454776]
[1764110133036,0.67,138.09,138.02,3.24]
[1764110133037,7.24454776,138.09,138.03,18.1118072]
[1764110133214,7.24454776,138.09,138.04,6.57454776]
[1764110133420,0.67,138.08,138.04,6.57454776]
[1764110134743,0.67,138.08,138.03,6.57454776]
[1764110134937,7.91228909,138.08,138.03,13.81907471]
[1764110135347,0.67,138.07,138.03,13.81907471]
[1764110135945,0.67,138.07,138.03,7.24452695]
[1764110136148,0.67,138.07,138.03,13.81907471]
[1764110136329,0.67,138.07,138.04,6.57454776]
[1764110137130,0.67,138.07,138.04,13.81858517]
[1764110137446,0.67,138.07,138.05,6.57454776]
[1764110138344,0.67,138.07,138.04,6.57454776]
[1764110138948,0.67,138.07,138.05,6.57454776]
[1764110139144,0.67,138.07,138.06,6.57454776]
[1764110139341,0.67,138.07,138.02,25.35864367]
[1764110139644,0.67,138.07,138.05,6.57454776]
[1764110140343,0.67,138.07,138.06,7.24322758]
[1764110140546,0.67,138.07,138.06,13.81777534]
[1764110140748,0.67,138.07,138.06,7.24322758]
[1764110144935,0.67,138.07,138.04,7.24427702]
[1764110145135,0.67,138.07,138.04,13.81882478]
[1764110145341,0.67,138.07,138.05,6.57454776]
[1764110146458,16.76145826,138.1,138.06,6.57454776]
[1764110146459,3.61569289,138.1,138.06,6.57454776]
[1764110146663,3.61569289,138.1,138.07,6.57454776]
[1764110147038,0.67,138.09,138.07,13.81675149]
[1764110147560,2.94569289,138.1,138.08,6.57454776]
[1764110147743,3.61569289,138.1,138.08,6.57454776]
[1764110149237,3.61569289,138.1,138.09,7.24165399]
[1764110150040,3.61569289,138.1,138.06,7.24322758]
[1764110150241,0.67,138.09,138.07,6.57454776]
[1764110151054,0.67,138.09,138.06,31.92584429]
[1764110151254,0.67,138.09,138.07,6.57454776]
[1764110151646,0.67,138.09,138.06,31.92584429]
[1764110151845,0.67,138.09,138.07,6.57454776]
[1764110152573,0.67,138.09,138.08,7.24217844]
[1764110153570,2.94569289,138.1,138.08,18.65526103]
[1764110153738,0.67,138.09,138.08,18.65526103]
[1764110154169,0.67,138.09,138.08,7.24217844]
[1764110155142,3.61569289,138.1,138.08,18.65526103]
[1764110157768,2.94569289,138.1,138.08,18.65526103]
[1764110158654,3.61569289,138.1,138.08,18.65526103]
[1764110159738,3.61569289,138.1,138.08,7.24217844]
[1764110160143,3.66569289,138.1,138.08,7.24217844]
[1764110160577,0.72,138.09,138.08,7.24217844]
[1764110161249,0.72,138.09,138.04,41.66275125]
[1764110161452,0.72,138.09,138.04,56.29583384]
[1764110161772,0.72,138.09,138.04,53.07583384]
[1764110162269,7.96167297,138.09,138.04,7.24427702]
[1764110162462,0.72,138.09,138.04,18.65735961]
[1764110162644,0.72,138.08,138.04,18.65735961]
[1764110167947,19.37545241,138.08,138.04,7.24427702]
[1764110168152,12.13308259,138.08,138.04,7.24427702]
[1764110168354,0.72,138.07,138.04,7.24427702]
[1764110168675,0.72,138.07,138.04,18.65735961]
[1764110170264,0.72,138.07,138.04,7.24427702]
[1764110170982,0.72,138.07,138.04,18.65735961]
[1764110172175,7.96275476,138.07,138.03,11.41308259]
[1764110172564,62.94569289,138.1,138.03,11.41308259]
[1764110172774,3.66569289,138.1,138.08,11.41308259]
[1764110173079,3.66569289,138.1,138.04,19.528864]
[1764110173254,3.66569289,138.1,138.07,11.41308259]
[1764110173450,3.66569289,138.1,138.08,11.41308259]
[1764110173882,3.66569289,138.1,138.07,11.41308259]
[1764110174265,3.66569289,138.1,138.08,7.24217844]
[1764110174472,2.94569289,138.1,138.08,7.24217844]
[1764110174667,0.72,138.09,138.08,7.24217844]
[1764110176359,2.94569289,138.1,138.08,7.24217844]
[1764110176588,3.66569289,138.1,138.08,7.24217844]
[1764110176770,3.66569289,138.1,137.97,19.23857617]
[1764110176771,0.72,138.09,137.97,19.23857617]
[1764110176982,4.30169213,138.07,138.01,4.30169213]
[1764110177362,0.72,138.06,138.01,4.30169213]
[1764110177772,0.72,138.06,138.0,20.61055613]
[1764110178071,0.72,138.06,138.01,7.24585174]
[1764110178272,0.72,138.06,138.01,29.66217324]
[1764110178770,0.72,138.06,138.01,25.36048111]
[1764110179170,12.26492969,138.06,138.01,7.24585174]
[1764110179569,5.02169213,138.05,138.0,7.24623869]
[1764110179782,0.72,138.05,138.0,11.54793082]
[1764110180084,0.72,138.04,138.0,11.54793082]
[1764110180863,0.72,138.06,138.02,8.80994492]
[1764110181065,0.72,138.06,138.03,4.30169213]
[1764110181372,0.72,138.06,138.02,4.97169213]
[1764110181579,0.72,138.06,138.02,4.30169213]
[1764110181776,0.72,138.06,138.01,20.61055613]
[1764110181974,0.72,138.06,138.02,7.24532676]
[1764110182168,7.96333633,138.06,138.02,7.24532676]
[1764110182592,0.72,138.05,138.02,7.24532676]
[1764110183468,0.72,138.05,138.01,7.24564629]
[1764110183877,0.72,138.05,138.02,4.30169213]
[1764110184101,0.72,138.05,138.02,11.54654151]
[1764110184980,3.95,138.07,138.03,4.95169213]
[1764110186394,3.95,138.07,138.04,7.24427702]
[1764110187581,0.71,138.07,138.04,7.24427702]
[1764110188096,0.71,138.09,138.04,30.3066617]
[1764110188282,0.71,138.09,138.06,7.24322758]
[1764110189977,6.18569289,138.1,138.06,26.00129653]
[1764110190471,0.71,138.09,138.06,26.00129653]
[1764110190678,0.71,138.09,138.06,25.35129653]
[1764110192168,0.71,138.09,138.06,11.54491971]
[1764110192478,0.71,138.09,138.06,7.24322758]
[1764110195879,12.25340313,138.09,138.05,7.24343726]
[1764110196280,0.71,138.08,138.05,7.24343726]
[1764110196991,0.71,138.08,138.04,7.24427702]
[1764110198495,12.25429981,138.08,138.04,7.24427702]
[1764110198893,12.25429981,138.08,138.04,26.00496957]
[1764110198894,0.71,138.08,138.04,26.00496957]
[1764110199096,66.89569289,138.1,138.06,4.30169213]
[1764110199480,0.71,138.09,138.06,4.30169213]
[1764110199691,2.94569289,138.1,138.08,4.30169213]
[1764110199896,2.94569289,138.1,138.07,4.95169213]
[1764110200396,2.94569289,138.1,138.09,4.30169213]
[1764110200895,2.94569289,138.1,138.09,21.00329104]
[1764110201401,2.94569289,138.1,138.09,16.70159891]
[1764110201699,2.94569289,138.1,138.09,21.00329104]
[1764110202802,0.71,138.18,138.1,8.80994492]
[1764110202972,0.71,138.18,138.15,11.5398337]
[1764110205085,0.71,138.18,138.16,4.30169213]
[1764110205794,3.24,138.2,138.15,29.63610586]
[1764110206088,0.71,138.2,138.16,4.95169213]
[1764110207069,0.71,138.2,138.17,7.23746109]
[1764110208496,5.01169213,138.2,138.17,7.23746109]
[1764110208686,5.01169213,138.2,138.16,7.2378112]
[1764110208886,0.71,138.19,138.16,7.2378112]
[1764110209196,0.71,138.19,138.15,25.33478102]
[1764110209600,4.30169213,138.18,138.14,7.23881677]
[1764110209777,4.30169213,138.17,138.13,7.23940908]
[1764110209979,5.01169213,138.18,138.13,7.23940908]
[1764110210394,0.71,138.17,138.13,7.23940908]
[1764110211489,0.71,138.17,138.13,7.88940908]
[1764110211689,0.71,138.17,138.13,7.23940908]
[1764110213298,34.49786666,138.21,138.16,8.80994492]
[1764110213299,0.1,138.21,138.16,8.80994492]
[1764110213500,0.1,138.21,138.14,12.71994492]
[1764110213820,0.1,138.21,138.16,13.11163705]
[1764110214308,0.1,138.21,138.16,4.30169213]
[1764110214612,0.68,138.2,138.16,3.41935382]
[1764110215305,0.68,138.2,138.17,7.23746109]
[1764110215689,0.68,138.2,138.17,25.33111383]
[1764110216589,3.42935382,138.2,138.16,7.23778423]
[1764110216998,0.68,138.19,138.16,7.23778423]
[1764110217197,3.42935382,138.19,138.16,7.23778423]
[1764110217407,0.68,138.19,138.15,25.3345514]
[1764110217616,0.68,138.18,138.15,25.3345514]
[1764110218318,2.74935382,138.2,138.15,28.75390522]
[1764110218319,0.68,138.2,138.15,28.75390522]
[1764110218513,0.68,138.19,138.15,26.0045514]
[1764110218919,0.68,138.19,138.15,25.3345514]
[1764110221017,0.68,138.19,138.15,26.0545514]
[1764110222910,0.68,138.19,138.17,7.23746109]
[1764110226103,0.68,138.18,138.14,9.98816163]
[1764110226392,7.23641363,138.19,138.14,9.98816163]
[1764110226601,0.68,138.2,138.15,2.74935382]
[1764110227120,3.42935382,138.2,138.14,28.08574379]
[1764110227320,2.74935382,138.19,138.14,25.33638997]
[1764110227707,0.68,138.18,138.14,25.33638997]
[1764110228303,2.74935382,138.16,138.1,0.72]
[1764110228505,0.68,138.18,138.1,0.72]
[1764110228506,2.74935382,138.17,138.11,2.74935382]
[1764110228707,10.66687361,138.17,138.11,2.74935382]
[1764110228920,0.68,138.16,138.11,2.74935382]
[1764110229712,0.68,138.16,138.09,7.2415871]
[1764110229915,2.74935382,138.14,138.08,18.80126142]
[1764110230305,0.68,138.13,138.08,18.80126142]
[1764110231309,0.68,138.13,138.08,36.90670753]
[1764110231515,0.68,138.13,138.09,2.74935382]
[1764110231817,0.68,138.13,138.08,26.06740879]
[1764110232118,3.42935382,138.13,138.08,7.24196268]
[1764110232321,2.74935382,138.12,138.08,7.24196268]
[1764110232617,10.66960602,138.12,138.07,7.24270297]
[1764110232818,0.68,138.11,138.07,7.24270297]
[1764110233194,0.68,138.11,138.07,9.99205679]
[1764110233398,0.68,138.11,138.07,7.24270297]
[1764110233597,0.68,138.11,138.07,9.99205679]
[1764110234326,0.68,138.14,138.1,2.74935382]
[1764110234507,0.68,138.14,138.12,7.24008108]
[1764110234830,0.68,138.15,138.12,7.24008108]
[1764110236240,3.22,138.17,138.12,9.9894349]
[1764110236408,0.68,138.16,138.12,28.80963762]
[1764110236628,0.68,138.16,138.12,26.0602838]
[1764110236909,0.68,138.16,138.12,25.3402838]
[1764110238214,0.68,138.16,138.12,28.08963762]
[1764110238726,0.68,138.16,138.12,25.3402838]
[1764110238910,0.68,138.16,138.12,7.24008108]
[1764110239103,0.68,138.16,138.12,7.96008108]
[1764110240223,0.68,138.16,138.12,7.24008108]
[1764110242025,65.96935382,138.18,138.12,7.24008108]
[1764110242026,3.9,138.18,138.13,3.46935382]
[1764110242330,3.9,138.18,138.14,2.74935382]
[1764110242628,0.68,138.17,138.15,7.23850886]
[1764110243131,0.68,138.18,138.15,7.23850886]
[1764110245107,0.68,138.18,138.14,25.33661502]
[1764110246355,7.91704903,138.18,138.12,7.23959544]
[1764110246815,3.44935382,138.17,138.12,7.23959544]
[1764110247534,0.7,138.16,138.12,7.23959544]
[1764110248313,0.7,138.16,138.12,25.33979816]
[1764110248826,0.7,138.16,138.11,7.24039117]
[1764110248827,3.44935382,138.16,138.11,7.24039117]
[1764110249306,0.7,138.15,138.11,7.24039117]
[1764110249510,0.7,138.15,138.11,7.91039117]
[1764110250317,0.7,138.15,138.11,26.01190445]
[1764110250731,0.1,138.21,138.12,9.47994492]
[1764110250929,0.7,138.19,138.12,29.00880892]
[1764110251128,4.02,138.21,138.17,2.74935382]
[1764110251331,3.32,138.21,138.18,2.74935382]
[1764110251524,0.1,138.21,138.2,8.80994492]
[1764110251835,0.8,138.3,138.2,27.86816274]
[1764110252018,0.7,138.29,138.24,2.74935382]
[1764110252221,0.7,138.29,138.21,3.89]
[1764110252222,0.7,138.29,138.21,3.41935382]
[1764110252420,2.74935382,138.28,138.22,2.74935382]
[1764110252634,0.7,138.29,138.23,2.74935382]
[1764110252842,0.7,138.28,138.23,2.74935382]
[1764110253137,7.33070067,138.3,138.24,2.74935382]
[1764110253326,0.8,138.3,138.25,2.74935382]
[1764110253522,0.7,138.29,138.25,9.98228023]
[1764110253835,0.1,138.3,138.27,2.74935382]
[1764110254042,0.1,138.3,138.28,2.74935382]
[1764110254215,0.1,138.3,138.26,0.67]
[1764110254739,0.1,138.3,138.29,19.05821782]
[1764110255415,0.1,138.3,138.29,26.28939867]
[1764110255843,0.1,138.3,138.29,26.95939867]
[1764110256226,0.1,138.3,138.29,38.98934359]
[1764110256964,0.7,138.39,138.3,8.80994492]
[1764110257236,0.7,138.39,138.35,2.74935382]
[1764110257457,10.67438373,138.41,138.35,9.97696074]
[1764110257632,7.92502991,138.41,138.35,10.64696074]
[1764110257825,18.9798152,138.43,138.37,2.74935382]
[1764110258037,2.74935382,138.41,138.35,28.04707277]
[1764110258356,3.44935382,138.42,138.36,2.74935382]
[1764110258531,0.7,138.42,138.37,6.52650937]
[1764110258851,6.52650937,138.42,138.36,7.19650937]
[1764110259142,18.2798152,138.43,138.37,25.29450025]
[1764110259329,0.7,138.42,138.37,25.96450025]
[1764110259537,0.7,138.42,138.37,35.71100962]
[1764110260060,15.0598152,138.43,138.38,16.00645429]
[1764110260222,0.7,138.42,138.38,15.33645429]
[1764110260538,15.0598152,138.43,138.4,6.52650937]
[1764110260736,15.7598152,138.43,138.38,7.19650937]
[1764110260916,0.7,138.42,138.39,6.52650937]
[1764110261321,0.7,138.42,138.4,7.22543352]
[1764110261545,0.7,138.42,138.38,7.22647781]
[1764110261721,0.7,138.42,138.38,13.75298718]
[1764110262041,0.7,138.42,138.39,6.52650937]
[1764110262442,15.0598152,138.43,138.38,7.22647781]
[1764110262632,15.7598152,138.43,138.39,6.52650937]
[1764110262826,15.7598152,138.43,138.4,6.52650937]
[1764110262827,15.0598152,138.43,138.4,6.52650937]
[1764110263343,15.7598152,138.43,138.4,13.75194289]
[1764110263841,15.0598152,138.43,138.4,13.75194289]
[1764110264046,15.7598152,138.43,138.4,13.75194289]
[1764110264452,15.7598152,138.43,138.4,7.22543352]
[1764110264635,0.7,138.42,138.4,7.22543352]
[1764110265545,15.0598152,138.43,138.4,7.22543352]
[1764110265546,15.7598152,138.43,138.4,13.75194289]
[1764110266245,15.7598152,138.43,138.41,6.52650937]
[1764110266448,15.0598152,138.43,138.41,6.52650937]
[1764110267472,15.7598152,138.43,138.4,13.75194289]
[1764110267630,0.7,138.42,138.37,8.80994492]
[1764110267834,0.7,138.42,138.37,10.44700007]
[1764110268146,0.7,138.42,138.38,6.52650937]
[1764110268956,15.0598152,138.43,138.4,6.52650937]
[1764110269149,15.7598152,138.43,138.4,6.52650937]
[1764110269360,0.7,138.42,138.39,13.75226817]
[1764110269930,0.7,138.42,138.39,7.2257588]
[1764110270251,7.22650937,138.42,138.37,16.97342151]
[1764110270426,6.52650937,138.41,138.36,6.52650937]
[1764110270631,7.22650937,138.41,138.36,13.75396467]
[1764110270823,7.22650937,138.41,138.36,7.2274553]
[1764110270824,0.7,138.4,138.36,7.2274553]
[1764110271048,0.7,138.4,138.36,13.75396467]
[1764110271637,6.52650937,138.39,138.35,7.22768318]
[1764110271837,7.22650937,138.4,138.35,7.22768318]
[1764110272057,0.7,138.39,138.35,13.75419255]
[1764110272352,0.7,138.39,138.35,7.22768318]
[1764110272942,14.45248639,138.39,138.34,7.22856729]
[1764110273137,6.52650937,138.38,138.34,7.22856729]
[1764110273354,6.52650937,138.37,138.33,7.2289992]
[1764110273536,7.22650937,138.37,138.33,7.2289992]
[1764110273734,0.7,138.36,138.33,7.2289992]
[1764110274841,0.7,138.36,138.32,18.60131512]
[1764110275441,0.7,138.36,138.32,7.22952624]
[1764110275637,0.7,138.36,138.32,36.67534635]
[1764110276957,3.22,138.39,138.33,12.07178888]
[1764110276958,0.7,138.38,138.33,12.07178888]
[1764110277142,19.29830128,138.38,138.32,18.60131512]
[1764110277759,0.7,138.37,138.32,18.60131512]
[1764110277954,0.7,138.37,138.32,7.22952624]
[1764110278164,0.7,138.37,138.32,25.30355747]
[1764110278348,19.29894078,138.37,138.32,7.22952624]
[1764110278663,11.37178888,138.35,138.3,7.23055128]
[1764110278872,11.37178888,138.35,138.27,3.22]
[1764110278873,11.37178888,138.34,138.27,3.22]
[1764110279043,12.07178888,138.34,138.28,11.37178888]
[1764110279244,0.7,138.33,138.27,3.92]
[1764110279541,0.7,138.33,138.28,11.37178888]
[1764110279969,0.7,138.33,138.29,7.23118085]
[1764110280140,0.7,138.33,138.29,18.60296973]
[1764110280760,3.22,138.35,138.3,0.7]
[1764110280959,3.22,138.35,138.29,25.30913297]
[1764110281171,3.22,138.35,138.31,11.37178888]
[1764110281375,3.22,138.35,138.32,11.37178888]
[1764110281576,3.93,138.35,138.3,0.7]
[1764110281861,3.93,138.35,138.32,11.37178888]
[1764110282574,3.93,138.35,138.31,25.3054732]
[1764110282735,0.71,138.35,138.31,25.3054732]
[1764110282940,0.71,138.35,138.32,11.37178888]
[1764110283747,0.71,138.4,138.35,8.80994492]
[1764110284062,0.71,138.4,138.36,18.59908842]
[1764110284442,0.71,138.4,138.36,7.22729954]
[1764110286144,0.71,138.4,138.36,18.59908842]
[1764110286339,0.71,138.4,138.34,7.22846121]
[1764110286668,7.93545251,138.4,138.35,11.37178888]
[1764110286870,0.71,138.4,138.36,11.37178888]
[1764110287166,18.2798152,138.43,138.36,11.37178888]
[1764110287349,18.9898152,138.43,138.39,11.37178888]
[1764110287874,0.71,138.42,138.39,11.37178888]
[1764110288366,0.71,138.42,138.4,7.22543352]
[1764110289058,0.71,138.42,138.38,11.37178888]
[1764110289648,0.71,138.42,138.39,11.37178888]
[1764110290455,0.71,138.42,138.4,7.22543352]
[1764110292845,0.71,138.42,138.39,7.22595563]
[1764110294078,0.71,138.42,138.39,18.59774451]
[1764110294450,0.71,138.42,138.39,7.22595563]
[1764110294866,18.2798152,138.43,138.4,11.37178888]
[1764110295045,0.71,138.42,138.39,36.66263359]
[1764110295870,12.08178888,138.42,138.36,11.37178888]
[1764110296047,11.37178888,138.41,138.36,11.37178888]
[1764110296357,0.71,138.41,138.36,11.37178888]
[1764110296556,0.71,138.4,138.37,11.37178888]
[1764110296768,0.71,138.4,138.38,7.22647781]
[1764110297967,0.71,138.4,138.37,7.22682923]
[1764110298866,3.93,138.4,138.37,7.22682923]
[1764110299269,0.71,138.39,138.37,7.22682923]
[1764110300267,0.71,138.39,138.36,18.59929794]
[1764110301288,3.22,138.4,138.38,11.37178888]
[1764110301578,3.93,138.4,138.38,18.59790821]
[1764110302161,15.0598152,138.43,138.39,12.07178888]
[1764110302358,15.7698152,138.43,138.39,12.07178888]
[1764110302671,0.71,138.42,138.39,11.37178888]
[1764110302869,0.71,138.42,138.38,37.36410274]
[1764110303757,0.71,138.42,138.38,25.99231386]
[1764110304062,0.71,138.42,138.38,37.36410274]
[1764110304258,15.0598152,138.43,138.41,11.37178888]
[1764110304556,15.0598152,138.43,138.4,11.37178888]
[1764110304877,15.0598152,138.43,138.41,11.37178888]
[1764110305176,15.0598152,138.43,138.4,14.59178888]
[1764110305362,15.0598152,138.43,138.42,11.37178888]
[1764110305563,15.0598152,138.43,138.42,18.59617841]
[1764110305973,15.0598152,138.43,138.42,19.26617841]
[1764110307252,4.49706571,138.47,138.42,76.66909994]
[1764110307452,4.49706571,138.47,138.46,11.37178888]
[1764110307654,4.49706571,138.47,138.46,18.59409135]
[1764110308074,4.49706571,138.47,138.46,7.22230247]
[1764110309851,4.49706571,138.47,138.46,19.26409135]
[1764110310077,4.49706571,138.47,138.46,7.89230247]
[1764110310282,4.49706571,138.47,138.46,19.26409135]
[1764110311467,4.49706571,138.47,138.46,7.22230247]
[1764110311662,4.49706571,138.47,138.46,18.59409135]
[1764110312889,4.49706571,138.47,138.46,19.26409135]
[1764110313389,4.49706571,138.47,138.46,18.59409135]
[1764110315067,4.49706571,138.47,138.46,19.26409135]
[1764110316405,4.49706571,138.47,138.46,11.37178888]
[1764110316992,4.49706571,138.47,138.46,18.59409135]
[1764110318868,4.49706571,138.47,138.46,7.22230247]
[1764110319095,4.49706571,138.47,138.46,18.59409135]
[1764110319284,4.49706571,138.47,138.46,7.22230247]
[1764110319599,5.21706571,138.47,138.44,7.22310308]
[1764110319785,0.72,138.46,138.44,11.37178888]
[1764110319981,0.72,138.46,138.44,18.59488475]
[1764110321283,0.72,138.46,138.44,7.22309587]
[1764110321485,0.72,138.46,138.43,7.22346615]
[1764110322886,0.72,138.46,138.43,11.50365992]
[1764110323295,0.72,138.46,138.43,7.22346615]
[1764110323608,12.22280651,138.46,138.41,7.22468771]
[1764110323982,11.16308188,138.45,138.41,7.22468771]
[1764110324381,10.44308188,138.45,138.41,7.22468771]
[1764110324679,0.72,138.44,138.41,7.22468771]
[1764110326487,0.72,138.44,138.4,4.28019377]
[1764110326694,0.72,138.44,138.41,4.28019377]
[1764110328220,0.72,138.44,138.4,4.28019377]
[1764110328812,11.50277273,138.46,138.42,4.28019377]
[1764110328813,0.72,138.46,138.42,4.28019377]
[1764110330820,5.00019377,138.46,138.43,7.22386765]
[1764110331191,0.72,138.45,138.43,7.22386765]
[1764110332302,0.72,138.45,138.42,7.22426557]
[1764110332694,0.72,138.45,138.41,25.28647038]
[1764110333090,0.72,138.45,138.41,29.56666415]
[1764110335307,7.94283671,138.45,138.41,25.28647038]
[1764110335690,0.67,138.44,138.41,25.28647038]